[Event "Championnat d'Europe Rapide"]
[Date "2024.12.07"]
[White "Galuszka, Tomasz"]
[Black "Janik, Igor"]
[WhiteElo "2174"]
[BlackElo "2515"]
[Round "2.41"]
[Result "0-1"]
[TimeControl "900+10"]

1. e4 {[%emt 00:00:01] [%clk 00:15:18]} c6 {[%emt 00:00:01] [%clk 00:15:19]} 2.
Nf3 {[%emt 00:00:04] [%clk 00:15:24]} d5 {[%emt 00:00:01] [%clk 00:15:28]} 3. d3
{[%emt 00:00:06] [%clk 00:15:27]} Bg4 {[%emt 00:00:08] [%clk 00:15:29]} 4. h3
{[%emt 00:00:07] [%clk 00:15:31]} Bh5 {[%emt 00:00:11] [%clk 00:15:29]} 5. Qe2
{[%emt 00:00:21] [%clk 00:15:19]} e6 {[%emt 00:00:10] [%clk 00:15:29]} 6. g4
{[%emt 00:00:12] [%clk 00:15:17]} Bg6 {[%emt 00:00:01] [%clk 00:15:38]} 7. Bg2
{[%emt 00:00:03] [%clk 00:15:24]} Bd6 {[%emt 00:00:58] [%clk 00:14:50]} 8. O-O
{[%emt 00:00:08] [%clk 00:15:26]} Ne7 {[%emt 00:00:03] [%clk 00:14:57]} 9. c4
{[%emt 00:00:51] [%clk 00:14:46]} O-O {[%emt 00:01:20] [%clk 00:13:47]} 10. cxd5
{[%emt 00:00:21] [%clk 00:14:35]} cxd5 {[%emt 00:00:01] [%clk 00:13:56]} 11. Nc3
{[%emt 00:00:44] [%clk 00:14:01]} Nbc6 {[%emt 00:00:02] [%clk 00:14:04]} 12. e5
{[%emt 00:01:29] [%clk 00:12:41]} Bc5 {[%emt 00:01:32] [%clk 00:12:43]} 13. Bg5
{[%emt 00:03:01] [%clk 00:09:50]} h6 {[%emt 00:00:15] [%clk 00:12:38]} 14. Bh4
{[%emt 00:00:01] [%clk 00:09:59]} a6 {[%emt 00:01:15] [%clk 00:11:34]} 15. Rac1
{[%emt 00:00:26] [%clk 00:09:43]} Ba7 {[%emt 00:00:01] [%clk 00:11:43]} 16. Qd2
{[%emt 00:00:07] [%clk 00:09:46]} Rc8 {[%emt 00:00:41] [%clk 00:11:12]} 17. Ne2
{[%emt 00:01:06] [%clk 00:08:49]} Re8 {[%emt 00:02:05] [%clk 00:09:17]} 18. Nf4
{[%emt 00:00:36] [%clk 00:08:22]} Qb6 {[%emt 00:00:22] [%clk 00:09:05]} 19. Nxg6
{[%emt 00:00:39] [%clk 00:07:53]} Nxg6 {[%emt 00:00:03] [%clk 00:09:12]} 20. Bg3
{[%emt 00:00:02] [%clk 00:08:02]} Nd4 {[%emt 00:00:44] [%clk 00:08:38]} 21. Rc3
{[%emt 00:03:57] [%clk 00:04:14]} Nxf3+ {[%emt 00:00:44] [%clk 00:08:04]} 22.
Bxf3 {[%emt 00:00:01] [%clk 00:04:22]} Rc6 {[%emt 00:00:11] [%clk 00:08:03]} 23.
Rxc6 {[%emt 00:00:48] [%clk 00:03:45]} bxc6 {[%emt 00:00:03] [%clk 00:08:10]}
24. h4 {[%emt 00:00:01] [%clk 00:03:53]} Qd4 {[%emt 00:00:17] [%clk 00:08:04]}
25. Re1 {[%emt 00:00:06] [%clk 00:03:58]} Bb8 {[%emt 00:00:12] [%clk 00:08:01]}
26. Qe2 {[%emt 00:00:34] [%clk 00:03:34]} f6 {[%emt 00:00:51] [%clk 00:07:20]}
27. Qe3 {[%emt 00:01:33] [%clk 00:02:11]} Qxe3 {[%emt 00:00:08] [%clk 00:07:22]}
28. fxe3 {[%emt 00:00:03] [%clk 00:02:18]} Bxe5 {[%emt 00:00:07] [%clk
00:07:25]} 29. Bxe5 {[%emt 00:00:05] [%clk 00:02:23]} Nxe5 {[%emt 00:00:01]
[%clk 00:07:34]} 30. Be2 {[%emt 00:00:01] [%clk 00:02:32]} Rb8 {[%clk 00:07:44]}
31. b3 {[%emt 00:00:02] [%clk 00:02:40]} Rb6 {[%emt 00:00:16] [%clk 00:07:38]}
32. Rc1 {[%emt 00:00:06] [%clk 00:02:43]} Nd7 {[%emt 00:00:16] [%clk 00:07:32]}
33. Kf2 {[%emt 00:00:18] [%clk 00:02:35]} Kf7 {[%emt 00:00:01] [%clk 00:07:41]}
34. d4 {[%emt 00:00:09] [%clk 00:02:36]} Ke7 {[%clk 00:07:51]} 35. Kf3 {[%emt
00:00:07] [%clk 00:02:38]} Kd6 {[%emt 00:00:05] [%clk 00:07:55]} 36. g5 {[%emt
00:00:04] [%clk 00:02:45]} hxg5 {[%emt 00:00:11] [%clk 00:07:54]} 37. hxg5
{[%emt 00:00:02] [%clk 00:02:54]} c5 {[%emt 00:00:20] [%clk 00:07:44]} 38. Rh1
{[%emt 00:00:10] [%clk 00:02:53]} fxg5 {[%emt 00:01:30] [%clk 00:06:24]} 39. Rh7
{[%emt 00:00:01] [%clk 00:03:02]} g4+ {[%emt 00:00:21] [%clk 00:06:14]} 40. Kf2
{[%emt 00:00:39] [%clk 00:02:33]} Nf6 {[%emt 00:01:12] [%clk 00:05:12]} 41.
dxc5+ {[%emt 00:00:10] [%clk 00:02:32]} Kxc5 {[%emt 00:00:01] [%clk 00:05:21]}
42. Rxg7 {[%emt 00:00:01] [%clk 00:02:41]} Ne4+ {[%emt 00:00:14] [%clk
00:05:17]} 43. Ke1 {[%emt 00:01:33] [%clk 00:01:18]} g3 {[%emt 00:00:18] [%clk
00:05:10]} 44. Bd3 {[%emt 00:00:40] [%clk 00:00:47]} Nc3 {[%emt 00:00:26] [%clk
00:04:54]} 45. Rxg3 {[%emt 00:00:21] [%clk 00:00:37]} Nxa2 {[%emt 00:00:01]
[%clk 00:05:03]} 46. Bc2 {[%emt 00:00:02] [%clk 00:00:45]} Nb4 {[%emt 00:00:06]
[%clk 00:05:07]} 47. Kd2 {[%emt 00:00:04] [%clk 00:00:50]} Rb8 {[%emt 00:01:15]
[%clk 00:04:02]} 48. Rg6 {[%emt 00:00:08] [%clk 00:00:52]} Rh8 {[%emt 00:01:19]
[%clk 00:02:54]} 49. Bd1 {[%emt 00:00:01] [%clk 00:01:01]} Rh2+ {[%emt 00:00:05]
[%clk 00:02:59]} 50. Be2 {[%emt 00:00:01] [%clk 00:01:09]} Kd6 {[%emt 00:01:40]
[%clk 00:01:29]} 51. Rg4 {[%emt 00:00:09] [%clk 00:01:09]} a5 {[%emt 00:00:21]
[%clk 00:01:19]} 52. Rg5 {[%emt 00:00:10] [%clk 00:01:09]} Na6 {[%emt 00:00:11]
[%clk 00:01:19]} 0-1

[Site "Europe Echecs"]

[Event "Championnat d'Europe Rapide"]
[Date "2024.12.07"]
[White "Subelj, Jan"]
[Black "Kiratzopoulos, Efthimios"]
[WhiteElo "2526"]
[BlackElo "2193"]
[Round "2.42"]
[Result "1-0"]
[TimeControl "900+10"]

1. Nf3 {[%emt 00:00:07] [%clk 00:15:11]} Nf6 {[%emt 00:01:51] [%clk 00:13:31]}
2. c4 {[%emt 00:00:09] [%clk 00:15:11]} e6 {[%emt 00:00:03] [%clk 00:13:38]} 3.
g3 {[%emt 00:00:04] [%clk 00:15:16]} b6 {[%emt 00:00:15] [%clk 00:13:34]} 4. Bg2
{[%emt 00:00:02] [%clk 00:15:23]} Bb7 {[%emt 00:00:02] [%clk 00:13:43]} 5. O-O
{[%emt 00:00:03] [%clk 00:15:30]} Be7 {[%emt 00:00:01] [%clk 00:13:52]} 6. Nc3
{[%emt 00:00:05] [%clk 00:15:35]} O-O {[%emt 00:00:05] [%clk 00:13:57]} 7. Re1
{[%emt 00:00:02] [%clk 00:15:42]} d5 {[%emt 00:01:03] [%clk 00:13:05]} 8. cxd5
{[%emt 00:00:02] [%clk 00:15:50]} Nxd5 {[%emt 00:00:13] [%clk 00:13:02]} 9. Nxd5
{[%emt 00:01:33] [%clk 00:14:27]} exd5 {[%emt 00:00:18] [%clk 00:12:55]} 10. d4
{[%emt 00:00:02] [%clk 00:14:35]} c5 {[%emt 00:00:22] [%clk 00:12:43]} 11. dxc5
{[%emt 00:02:54] [%clk 00:11:51]} bxc5 {[%emt 00:00:02] [%clk 00:12:51]} 12. Ne5
{[%emt 00:00:09] [%clk 00:11:52]} Bf6 {[%emt 00:00:31] [%clk 00:12:29]} 13. Ng4
{[%emt 00:00:12] [%clk 00:11:49]} Na6 {[%emt 00:02:48] [%clk 00:09:52]} 14. Qb3
{[%emt 00:00:55] [%clk 00:11:03]} Rb8 {[%emt 00:01:32] [%clk 00:08:30]} 15. Bf4
{[%emt 00:00:38] [%clk 00:10:35]} c4 {[%emt 00:00:22] [%clk 00:08:19]} 16. Qb5
{[%emt 00:01:16] [%clk 00:09:28]} Nc7 {[%emt 00:02:02] [%clk 00:06:28]} 17.
Nxf6+ {[%emt 00:00:06] [%clk 00:09:31]} gxf6 {[%emt 00:00:01] [%clk 00:06:36]}
18. Qa4 {[%emt 00:00:30] [%clk 00:09:11]} Rc8 {[%emt 00:03:07] [%clk 00:03:40]}
19. Qxa7 {[%emt 00:02:08] [%clk 00:07:13]} Bc6 {[%clk 00:03:49]} 20. Bh6 {[%emt
00:02:51] [%clk 00:04:32]} Re8 {[%emt 00:00:02] [%clk 00:03:57]} 21. b3 {[%emt
00:00:34] [%clk 00:04:09]} Nb5 {[%emt 00:02:45] [%clk 00:01:21]} 22. Qc5 {[%emt
00:00:03] [%clk 00:04:16]} Qe7 {[%emt 00:00:01] [%clk 00:01:30]} 23. Qxe7 {[%emt
00:00:39] [%clk 00:03:48]} Rxe7 {[%emt 00:00:01] [%clk 00:01:39]} 24. bxc4
{[%emt 00:00:02] [%clk 00:03:56]} dxc4 {[%emt 00:00:01] [%clk 00:01:47]} 25.
Bxc6 {[%emt 00:00:03] [%clk 00:04:03]} Rxc6 {[%emt 00:00:01] [%clk 00:01:56]}
26. Rab1 {[%emt 00:00:11] [%clk 00:04:03]} f5 {[%emt 00:01:11] [%clk 00:00:55]}
27. Rxb5 {[%emt 00:01:27] [%clk 00:02:46]} Rxh6 {[%emt 00:00:02] [%clk
00:01:03]} 28. e3 {[%emt 00:00:01] [%clk 00:02:55]} f4 {[%emt 00:00:51] [%clk
00:00:22]} 29. gxf4 {[%emt 00:00:06] [%clk 00:02:59]} Rc6 {[%emt 00:00:06]} 30.
Rc1 {[%clk 00:03:04]} Ra7 {[%emt 00:00:11] [%clk 00:00:29]} 31. Rc2 {[%emt
00:00:02] [%clk 00:03:13]} Ra4 {[%emt 00:00:05] [%clk 00:00:34]} 32. Kf1 {[%emt
00:00:07] [%clk 00:03:15]} Rca6 {[%emt 00:00:08] [%clk 00:00:36]} 33. Rc5 {[%emt
00:00:02] [%clk 00:03:23]} Rxa2 {[%emt 00:00:16] [%clk 00:00:30]} 34. Rxa2
{[%emt 00:00:01] [%clk 00:03:31]} Rxa2 {[%clk 00:00:40]} 35. Rxc4 {[%emt
00:00:01] [%clk 00:03:40]} Kg7 {[%emt 00:00:09] [%clk 00:00:40]} 36. Kg2 {[%emt
00:00:01] [%clk 00:03:49]} Ra5 {[%emt 00:00:10] [%clk 00:00:41]} 37. Rc6 {[%emt
00:00:02] [%clk 00:03:57]} Rb5 {[%emt 00:00:12] [%clk 00:00:39]} 38. Kg3 {[%emt
00:00:01] [%clk 00:04:05]} Ra5 {[%emt 00:00:03] [%clk 00:00:47]} 39. e4 {[%emt
00:00:09] [%clk 00:04:05]} Ra3+ {[%emt 00:00:12] [%clk 00:00:45]} 40. f3 {[%emt
00:00:01] [%clk 00:04:14]} Ra1 {[%emt 00:00:01] [%clk 00:00:53]} 41. f5 {[%emt
00:00:29] [%clk 00:03:55]} Rg1+ {[%emt 00:00:05] [%clk 00:00:58]} 42. Kf4 {[%emt
00:00:15] [%clk 00:03:51]} Rh1 {[%emt 00:00:01] [%clk 00:01:06]} 43. h4 {[%emt
00:00:39] [%clk 00:03:22]} h6 {[%emt 00:00:21] [%clk 00:00:56]} 44. Kg4 {[%emt
00:00:02] [%clk 00:03:30]} Rg1+ {[%emt 00:00:07] [%clk 00:00:59]} 45. Kh5 {[%emt
00:00:02] [%clk 00:03:38]} Rg3 {[%emt 00:00:11] [%clk 00:00:59]} 46. f6+ {[%emt
00:00:18] [%clk 00:03:30]} Kh7 {[%emt 00:00:51] [%clk 00:00:17]} 47. Rc7 {[%emt
00:00:05] [%clk 00:03:35]} Kg8 {[%emt 00:00:01] [%clk 00:00:26]} 48. e5 {[%emt
00:00:11] [%clk 00:03:35]} Rg1 {[%emt 00:00:20] [%clk 00:00:15]} 49. Kxh6 {[%emt
00:00:15] [%clk 00:03:30]} Rg6+ {[%emt 00:00:02] [%clk 00:00:24]} 50. Kh5 {[%emt
00:00:01] [%clk 00:03:39]} Rg3 {[%emt 00:00:10] [%clk 00:00:23]} 51. f4 {[%emt
00:00:03] [%clk 00:03:45]} Rg1 {[%emt 00:00:05] [%clk 00:00:28]} 52. f5 {[%emt
00:00:04] [%clk 00:03:51]} Re1 {[%emt 00:00:04] [%clk 00:00:34]} 53. Kh6 {[%emt
00:00:02] [%clk 00:03:58]} 1-0

[Site "Europe Echecs"]

[Event "Championnat d'Europe Rapide"]
[Date "2024.12.07"]
[White "Goraj, Barbara"]
[Black "Muradli, Mahammad"]
[WhiteElo "2178"]
[BlackElo "2588"]
[Round "2.43"]
[Result "0-1"]
[TimeControl "900+10"]

1. e4 {[%emt 00:00:24] [%clk 00:14:45]} c5 {[%emt 00:00:24] [%clk 00:15:06]} 2.
Nf3 {[%emt 00:00:03] [%clk 00:14:52]} d6 {[%emt 00:00:08] [%clk 00:15:08]} 3. d4
{[%emt 00:00:02] [%clk 00:15:00]} cxd4 {[%emt 00:00:05] [%clk 00:15:13]} 4. Nxd4
{[%emt 00:00:03] [%clk 00:15:07]} Nf6 {[%emt 00:00:03] [%clk 00:15:18]} 5. Nc3
{[%emt 00:00:05] [%clk 00:15:14]} a6 {[%emt 00:00:03] [%clk 00:15:25]} 6. h4
{[%emt 00:00:04] [%clk 00:15:19]} e5 {[%emt 00:01:22] [%clk 00:14:14]} 7. Nb3
{[%emt 00:00:03] [%clk 00:15:26]} Be6 {[%emt 00:00:03] [%clk 00:14:21]} 8. f4
{[%emt 00:00:45] [%clk 00:14:51]} exf4 {[%emt 00:01:16] [%clk 00:13:16]} 9. Bxf4
{[%emt 00:00:03] [%clk 00:14:57]} Nc6 {[%emt 00:00:02] [%clk 00:13:24]} 10. Qd2
{[%emt 00:00:55] [%clk 00:14:12]} Be7 {[%emt 00:00:20] [%clk 00:13:14]} 11.
O-O-O {[%emt 00:00:16] [%clk 00:14:06]} Ne5 {[%emt 00:00:04] [%clk 00:13:20]}
12. Nd4 {[%emt 00:00:24] [%clk 00:13:52]} Rc8 {[%emt 00:06:21] [%clk 00:07:09]}
13. Nf5 {[%emt 00:03:56] [%clk 00:10:06]} Bxf5 {[%emt 00:00:04] [%clk 00:07:16]}
14. exf5 {[%emt 00:00:02] [%clk 00:10:13]} O-O {[%emt 00:00:03] [%clk 00:07:23]}
15. g4 {[%emt 00:03:09] [%clk 00:07:14]} Nexg4 {[%emt 00:01:13] [%clk 00:06:19]}
16. h5 {[%emt 00:01:06] [%clk 00:06:17]} Qa5 {[%emt 00:01:42] [%clk 00:04:48]}
17. Rg1 {[%emt 00:03:08] [%clk 00:03:19]} Kh8 {[%emt 00:01:24] [%clk 00:03:34]}
18. a3 {[%emt 00:01:18] [%clk 00:02:11]} b5 {[%emt 00:01:03] [%clk 00:02:41]}
19. Bh3 {[%emt 00:01:30] [%clk 00:00:51]} Rxc3 {[%emt 00:02:27] [%clk 00:00:24]}
20. Bxg4 {[%emt 00:00:47] [%clk 00:00:13]} Rxa3 {[%emt 00:00:18] [%clk
00:00:16]} 21. Qxa5 {[%emt 00:00:09] [%clk 00:00:14]} Rxa5 {[%emt 00:00:01]
[%clk 00:00:25]} 22. Bf3 {[%emt 00:00:09] [%clk 00:00:15]} Ra1+ {[%emt 00:00:18]
[%clk 00:00:17]} 23. Kd2 {[%emt 00:00:02] [%clk 00:00:24]} Ra4 {[%emt 00:00:01]
[%clk 00:00:25]} 24. Be3 {[%emt 00:00:22] [%clk 00:00:12]} h6 {[%emt 00:00:17]
[%clk 00:00:18]} 25. b3 {[%emt 00:00:01] [%clk 00:00:21]} Rh4 {[%emt 00:00:01]
[%clk 00:00:27]} 26. Rh1 {[%emt 00:00:16] [%clk 00:00:15]} Ne4+ {[%emt 00:00:23]
[%clk 00:00:13]} 27. Kc1 {[%emt 00:00:11] [%clk 00:00:14]} Rxh1 {[%emt 00:00:08]
[%clk 00:00:15]} 28. Bxh1 {[%emt 00:00:11] [%clk 00:00:13]} Ng3 {[%emt 00:00:09]
[%clk 00:00:16]} 29. Bf3 {[%emt 00:00:02] [%clk 00:00:21]} Nxf5 {[%emt 00:00:03]
[%clk 00:00:23]} 30. Bb6 {[%emt 00:00:17] [%clk 00:00:14]} g6 {[%emt 00:00:21]
[%clk 00:00:12]} 31. Rg1 {[%emt 00:00:11] [%clk 00:00:13]} Bg5+ {[%emt 00:00:06]
[%clk 00:00:16]} 32. Kb1 {[%emt 00:00:02] [%clk 00:00:21]} Be3 {[%emt 00:00:04]
[%clk 00:00:22]} 33. Bxe3 {[%emt 00:00:09] [%clk 00:00:22]} Nxe3 {[%emt
00:00:01] [%clk 00:00:31]} 34. Be4 {[%emt 00:00:19] [%clk 00:00:13]} g5 {[%emt
00:00:06] [%clk 00:00:35]} 35. Rg3 {[%emt 00:00:06] [%clk 00:00:16]} f5 {[%emt
00:00:03] [%clk 00:00:42]} 36. Rxe3 {[%emt 00:00:04] [%clk 00:00:22]} Re8 {[%emt
00:00:05] [%clk 00:00:47]} 37. Rd3 {[%emt 00:00:12] [%clk 00:00:21]} fxe4 {[%emt
00:00:02] [%clk 00:00:55]} 38. Rxd6 {[%emt 00:00:02] [%clk 00:00:30]} e3 {[%emt
00:00:02] [%clk 00:01:03]} 39. Rd1 {[%emt 00:00:04] [%clk 00:00:36]} g4 {[%emt
00:00:27] [%clk 00:00:46]} 40. Kc1 {[%emt 00:00:01] [%clk 00:00:45]} e2 {[%emt
00:00:09] [%clk 00:00:47]} 41. Re1 {[%emt 00:00:03] [%clk 00:00:52]} g3 {[%emt
00:00:09] [%clk 00:00:48]} 42. Kd2 {[%emt 00:00:18] [%clk 00:00:43]} g2 {[%emt
00:00:02] [%clk 00:00:56]} 43. c4 {[%emt 00:00:18] [%clk 00:00:35]} Rd8+ {[%emt
00:00:02] [%clk 00:01:05]} 0-1

[Site "Europe Echecs"]

[Event "Championnat d'Europe Rapide"]
[Date "2024.12.07"]
[White "Larkin, Vladyslav"]
[Black "Balinski, Damian"]
[WhiteElo "2449"]
[BlackElo "2203"]
[Round "2.44"]
[Result "1-0"]
[TimeControl "900+10"]

1. e4 {[%emt 00:00:01] [%clk 00:15:17]} d6 {[%emt 00:00:02] [%clk 00:15:19]} 2.
d4 {[%emt 00:00:02] [%clk 00:15:25]} Nf6 {[%emt 00:00:02] [%clk 00:15:26]} 3.
Nc3 {[%emt 00:00:03] [%clk 00:15:33]} g6 {[%emt 00:00:01] [%clk 00:15:35]} 4. h3
{[%emt 00:00:04] [%clk 00:15:39]} Bg7 {[%emt 00:00:06] [%clk 00:15:39]} 5. g4
{[%emt 00:00:07] [%clk 00:15:43]} O-O {[%emt 00:00:04] [%clk 00:15:44]} 6. Bg2
{[%emt 00:00:03] [%clk 00:15:50]} e5 {[%emt 00:00:03] [%clk 00:15:51]} 7. Nge2
{[%emt 00:00:03] [%clk 00:15:57]} Nc6 {[%emt 00:00:02] [%clk 00:15:58]} 8. Be3
{[%emt 00:00:30] [%clk 00:15:37]} exd4 {[%emt 00:01:29] [%clk 00:14:40]} 9. Nxd4
{[%emt 00:00:01] [%clk 00:15:46]} Re8 {[%emt 00:00:05] [%clk 00:14:45]} 10. O-O
{[%emt 00:00:20] [%clk 00:15:35]} Bd7 {[%emt 00:00:03] [%clk 00:14:52]} 11. Qd2
{[%emt 00:00:46] [%clk 00:14:59]} Nxd4 {[%emt 00:02:44] [%clk 00:12:19]} 12.
Bxd4 {[%emt 00:00:01] [%clk 00:15:08]} Bc6 {[%emt 00:00:01] [%clk 00:12:27]} 13.
Rfe1 {[%emt 00:00:46] [%clk 00:14:32]} Nd7 {[%emt 00:00:10] [%clk 00:12:26]} 14.
Bxg7 {[%emt 00:00:23] [%clk 00:14:19]} Kxg7 {[%emt 00:00:02] [%clk 00:12:35]}
15. f4 {[%emt 00:00:07] [%clk 00:14:22]} a5 {[%emt 00:01:26] [%clk 00:11:19]}
16. Rad1 {[%emt 00:00:24] [%clk 00:14:07]} Qh4 {[%emt 00:02:40] [%clk 00:08:49]}
17. Rf1 {[%emt 00:01:51] [%clk 00:12:26]} Re7 {[%emt 00:02:13] [%clk 00:06:46]}
18. Nd5 {[%emt 00:02:57] [%clk 00:09:39]} Bxd5 {[%emt 00:00:27] [%clk 00:06:30]}
19. Qxd5 {[%emt 00:00:02] [%clk 00:09:47]} Nc5 {[%emt 00:01:45] [%clk 00:04:55]}
20. e5 {[%emt 00:01:41] [%clk 00:08:16]} Rd8 {[%emt 00:02:43] [%clk 00:02:21]}
21. Rd2 {[%emt 00:00:13] [%clk 00:08:13]} b6 {[%emt 00:00:19] [%clk 00:02:12]}
22. Qc4 {[%emt 00:03:16] [%clk 00:05:07]} Qg3 {[%emt 00:00:47] [%clk 00:01:33]}
23. Kh1 {[%emt 00:01:17]} h5 {[%clk 00:01:09]} 24. gxh5 {[%emt 00:00:05] [%clk
00:04:40]} Rh8 {[%emt 00:00:07] [%clk 00:01:12]} 25. exd6 {[%emt 00:00:26] [%clk
00:04:24]} cxd6 {[%emt 00:00:04] [%clk 00:01:17]} 26. hxg6 {[%emt 00:01:47]
[%clk 00:02:47]} fxg6 {[%emt 00:00:47] [%clk 00:00:40]} 27. Qd4+ {[%emt
00:00:42] [%clk 00:02:15]} Kh7 {[%emt 00:00:02] [%clk 00:00:49]} 28. Rdf2 {[%emt
00:00:47] [%clk 00:01:38]} Rf8 {[%emt 00:00:47] [%clk 00:00:12]} 29. Qxd6 {[%emt
00:00:13] [%clk 00:01:34]} Rff7 {[%emt 00:00:03] [%clk 00:00:20]} 30. Qxb6
{[%emt 00:00:17] [%clk 00:01:28]} Ne4 {[%emt 00:00:13] [%clk 00:00:17]} 31. Bxe4
{[%emt 00:00:16] [%clk 00:01:21]} Rxe4 {[%emt 00:00:02] [%clk 00:00:25]} 32. Rg1
{[%emt 00:00:22] [%clk 00:01:09]} Re1 {[%emt 00:00:19] [%clk 00:00:15]} 33. Rxe1
{[%emt 00:00:05] [%clk 00:01:13]} Rxf4 {[%emt 00:00:12] [%clk 00:00:13]} 34.
Qc7+ {[%emt 00:00:03] [%clk 00:01:21]} 1-0

[Site "Europe Echecs"]

[Event "Championnat d'Europe Rapide"]
[Date "2024.12.07"]
[White "Pavlidou, Ekaterini"]
[Black "Peyrer, Konstantin"]
[WhiteElo "2160"]
[BlackElo "2440"]
[Round "2.45"]
[Result "0-1"]
[TimeControl "900+10"]

1. d4 {[%emt 00:00:02] [%clk 00:15:17]} Nf6 {[%emt 00:00:04]} 2. c4 {[%clk
00:15:26]} e6 {[%emt 00:00:02] [%clk 00:15:25]} 3. Nc3 {[%emt 00:00:02] [%clk
00:15:35]} Bb4 {[%emt 00:00:06] [%clk 00:15:29]} 4. a3 {[%emt 00:00:02] [%clk
00:15:43]} Bxc3+ {[%emt 00:00:03] [%clk 00:15:35]} 5. bxc3 {[%emt 00:00:02]
[%clk 00:15:52]} Nc6 {[%emt 00:00:06] [%clk 00:15:39]} 6. e3 {[%emt 00:00:04]
[%clk 00:15:58]} b6 {[%emt 00:00:08] [%clk 00:15:42]} 7. Bd3 {[%emt 00:00:09]
[%clk 00:15:58]} Na5 {[%emt 00:00:06] [%clk 00:15:47]} 8. e4 {[%emt 00:02:06]
[%clk 00:14:02]} d6 {[%emt 00:00:09] [%clk 00:15:48]} 9. Ne2 {[%emt 00:00:14]
[%clk 00:13:58]} Ba6 {[%emt 00:00:20] [%clk 00:15:38]} 10. O-O {[%emt 00:00:03]
[%clk 00:14:04]} Qd7 {[%emt 00:00:05] [%clk 00:15:43]} 11. Bg5 {[%emt 00:01:28]
[%clk 00:12:46]} Bxc4 {[%emt 00:00:12] [%clk 00:15:41]} 12. Rb1 {[%emt 00:00:06]
[%clk 00:12:51]} Qc6 {[%emt 00:01:12] [%clk 00:14:39]} 13. d5 {[%emt 00:01:28]
[%clk 00:11:34]} Qc5 {[%emt 00:02:19] [%clk 00:12:30]} 14. Rb4 {[%emt 00:00:24]
[%clk 00:11:20]} exd5 {[%emt 00:00:46] [%clk 00:11:52]} 15. exd5 {[%emt
00:01:38] [%clk 00:09:52]} Bxd3 {[%emt 00:00:23] [%clk 00:11:39]} 16. Bxf6
{[%emt 00:01:24] [%clk 00:08:38]} gxf6 {[%emt 00:00:13] [%clk 00:11:36]} 17.
Qxd3 {[%emt 00:00:03] [%clk 00:08:45]} O-O-O {[%emt 00:00:03] [%clk 00:11:42]}
18. Qa6+ {[%emt 00:01:40] [%clk 00:07:16]} Kd7 {[%emt 00:01:40] [%clk 00:10:13]}
19. Nf4 {[%emt 00:00:36] [%clk 00:06:49]} Rde8 {[%emt 00:00:56] [%clk 00:09:27]}
20. g3 {[%emt 00:02:46] [%clk 00:04:14]} Qxc3 {[%emt 00:01:43] [%clk 00:07:53]}
21. Qb5+ {[%emt 00:00:23] [%clk 00:04:01]} Kd8 {[%emt 00:00:02] [%clk 00:08:02]}
22. Nd3 {[%emt 00:00:20] [%clk 00:03:51]} Re2 {[%emt 00:00:37] [%clk 00:07:35]}
23. Rf4 {[%emt 00:01:00] [%clk 00:03:00]} Rhe8 {[%emt 00:00:57]} 24. Nb4 {[%clk
00:02:51]} R8e4 {[%emt 00:01:06] [%clk 00:06:11]} 25. Rxe4 {[%emt 00:00:26]
[%clk 00:02:36]} Rxe4 {[%emt 00:00:02] [%clk 00:06:19]} 26. Qa6 {[%emt 00:00:03]
[%clk 00:02:43]} Re1 {[%emt 00:03:13] [%clk 00:03:16]} 27. Qxa7 {[%emt 00:00:12]
[%clk 00:02:41]} Rxf1+ {[%emt 00:00:04] [%clk 00:03:23]} 28. Kxf1 {[%emt
00:00:01] [%clk 00:02:49]} Kd7 {[%emt 00:01:07] [%clk 00:02:25]} 29. Na6 {[%emt
00:01:14] [%clk 00:01:46]} Nb3 {[%emt 00:01:08] [%clk 00:01:27]} 30. Nb8+ {[%emt
00:00:20] [%clk 00:01:36]} Ke8 {[%emt 00:00:22] [%clk 00:01:14]} 31. Qa4+ {[%emt
00:00:17] [%clk 00:01:30]} Kf8 {[%emt 00:00:06] [%clk 00:01:18]} 32. Kg2 {[%emt
00:00:53] [%clk 00:00:47]} Qd3 {[%emt 00:00:22] [%clk 00:01:05]} 33. Qa8 {[%emt
00:00:44] [%clk 00:00:13]} Nd2 {[%emt 00:00:27] [%clk 00:00:47]} 34. Nd7+ {[%emt
00:00:09] [%clk 00:00:15]} Ke7 {[%emt 00:00:01] [%clk 00:00:56]} 35. Nb8 {[%emt
00:00:08] [%clk 00:00:17]} Qf1# {[%emt 00:00:03] [%clk 00:01:03]} 0-1

[Site "Europe Echecs"]